bitfinex-derivatives/quotes_BTCF0:USTF0_20250514
["timestamp","ask_amount","ask_price","bid_price","bid_amount"]
[1747189182729,0.83407855,103770.0,103760.0,0.33758446]
[1747189185032,0.9121789,103770.0,103760.0,0.33758446]
[1747189185733,0.83407855,103770.0,103760.0,0.33758446]
[1747189185935,0.9121789,103770.0,103760.0,0.33758446]
[1747189186722,0.83407855,103770.0,103760.0,0.33758446]
[1747189186926,0.9121789,103770.0,103760.0,0.33758446]
[1747189188929,0.17662071,103770.0,103760.0,0.85458516]
[1747189189131,0.01462071,103770.0,103760.0,0.91838516]
[1747189189332,0.01462071,103770.0,103760.0,0.76218446]
[1747189189536,0.009,103770.0,103760.0,0.91838516]
[1747189189735,0.0411,103770.0,103760.0,0.76218446]
[1747189189924,0.0361,103770.0,103760.0,0.76218446]
[1747189190130,0.0651,103770.0,103760.0,0.48048481]
[1747189190340,0.0651,103770.0,103760.0,0.84128481]
[1747189190536,0.07072071,103770.0,103760.0,0.76318446]
[1747189190723,0.07072071,103770.0,103760.0,0.84128481]
[1747189192033,0.07072071,103770.0,103760.0,0.76318446]
[1747189192232,0.07072071,103770.0,103760.0,0.84128481]
[1747189192740,0.03772071,103770.0,103760.0,0.84128481]
[1747189193438,0.00562071,103770.0,103760.0,0.84128481]
[1747189193640,0.00562071,103770.0,103760.0,0.91938516]
[1747189194738,0.00562071,103770.0,103760.0,2.41938516]
[1747189200233,0.00562071,103770.0,103760.0,2.34128481]
[1747189200442,0.00562071,103770.0,103760.0,2.41938516]
[1747189203340,1e-08,103770.0,103760.0,0.76318446]
[1747189203542,1e-08,103770.0,103760.0,0.84128481]
[1747189203738,0.07325076,103780.0,103770.0,0.1927242]
[1747189203939,0.10545076,103780.0,103770.0,2.22892455]
[1747189204242,0.29825076,103780.0,103770.0,2.22892455]
[1747189204437,0.26745076,103780.0,103770.0,2.32528687]
[1747189205045,0.26845076,103780.0,103770.0,2.32528687]
[1747189205440,0.26845076,103780.0,103770.0,1.88638652]
[1747189205647,0.30897333,103780.0,103770.0,1.96448687]
[1747189206037,0.29925076,103780.0,103770.0,1.96448687]
[1747189206243,0.30025076,103780.0,103770.0,1.96448687]
[1747189207540,0.30025076,103780.0,103770.0,1.88638652]
[1747189207947,0.33095076,103780.0,103770.0,1.88638652]
[1747189208246,0.33095076,103780.0,103770.0,1.96448687]
[1747189210245,0.2577,103780.0,103770.0,1.96448687]
[1747189211448,0.26752565,103780.0,103770.0,1.96448687]
[1747189212445,0.26752565,103780.0,103770.0,1.88638652]
[1747189212651,0.26752565,103780.0,103770.0,1.96448687]
[1747189213055,0.26752565,103780.0,103770.0,1.88638652]
[1747189213243,0.26752565,103780.0,103770.0,1.96448687]
[1747189214145,0.82103135,103780.0,103770.0,1.88638652]
[1747189215045,0.8991317,103780.0,103770.0,1.88638652]
[1747189215653,0.8991317,103780.0,103770.0,0.32188652]
[1747189216851,0.82103135,103780.0,103770.0,0.35278652]
[1747189217154,0.82103135,103780.0,103770.0,0.46178687]
[1747189217956,0.82103135,103780.0,103770.0,0.38368652]
[1747189218146,0.82103135,103780.0,103770.0,0.46178687]
[1747189218955,0.82103135,103780.0,103770.0,0.38368652]
[1747189219545,0.82103135,103780.0,103770.0,0.32188652]
[1747189219754,0.8991317,103780.0,103770.0,0.32188652]
[1747189220052,0.90475241,103780.0,103770.0,0.32188652]
[1747189220253,0.82665206,103780.0,103770.0,0.32188652]
[1747189221657,0.89990282,103780.0,103770.0,0.32188652]
[1747189222558,0.97800317,103780.0,103770.0,0.32188652]
[1747189222754,0.89990282,103780.0,103770.0,0.32188652]
[1747189223257,0.97800317,103780.0,103770.0,0.32188652]
[1747189223958,0.89990282,103780.0,103770.0,0.32188652]
[1747189224859,0.89990282,103780.0,103770.0,0.35508652]
[1747189226553,0.89990282,103780.0,103770.0,0.38588652]
[1747189230351,0.97800317,103780.0,103770.0,0.38588652]
[1747189230659,0.89990282,103780.0,103770.0,0.38588652]
[1747189238166,0.97800317,103780.0,103770.0,0.38588652]
[1747189240958,0.89990282,103780.0,103770.0,0.38588652]
[1747189241163,0.97800317,103780.0,103770.0,0.38588652]
[1747189241564,0.89990282,103780.0,103770.0,0.38588652]
[1747189245873,0.53910282,103780.0,103770.0,0.38588652]
[1747189246075,0.89990282,103780.0,103770.0,0.38588652]
[1747189248077,0.99755894,103780.0,103770.0,0.38588652]
[1747189258786,0.96685894,103780.0,103770.0,0.46398687]
[1747189259983,0.71115324,103780.0,103770.0,0.46398687]
[1747189260485,0.90385894,103780.0,103770.0,0.46398687]
[1747189260685,0.93153823,103780.0,103770.0,0.38588652]
[1747189261072,0.96223823,103780.0,103770.0,0.38588652]
[1747189261281,0.80023823,103780.0,103770.0,0.38588652]
[1747189261793,0.80585894,103780.0,103770.0,0.38588652]
[1747189262184,0.96785894,103780.0,103770.0,0.46398687]
[1747189262485,0.96785894,103780.0,103770.0,0.38588652]
[1747189264587,0.87020282,103780.0,103770.0,0.38588652]
[1747189273594,0.87020282,103780.0,103770.0,0.46398687]
[1747189274183,0.87020282,103780.0,103770.0,0.38588652]
[1747189274390,0.87020282,103780.0,103770.0,0.46398687]
[1747189274791,0.30687147,103780.0,103770.0,0.46398687]
[1747189274981,0.27617147,103780.0,103770.0,0.82478687]
[1747189275183,0.11417147,103780.0,103770.0,0.82478687]
[1747189277187,0.27617147,103780.0,103770.0,0.82478687]
[1747189279990,0.27617147,103780.0,103770.0,2.32478687]
[1747189280297,0.11417147,103780.0,103770.0,2.32478687]
[1747189280998,0.04092071,103780.0,103770.0,2.32478687]
[1747189281297,0.20292071,103780.0,103770.0,2.32478687]
[1747189283193,0.20292071,103780.0,103770.0,2.24668652]
[1747189283397,0.20292071,103780.0,103770.0,2.32478687]
[1747189286291,0.16962071,103780.0,103770.0,2.32478687]
[1747189286886,0.16962071,103780.0,103770.0,2.24668652]
[1747189287088,0.00762071,103780.0,103770.0,2.32478687]
[1747189288397,0.00662071,103780.0,103770.0,2.32478687]
[1747189288600,0.00662071,103780.0,103770.0,2.32578687]
[1747189288805,0.00562071,103780.0,103770.0,2.32678687]
[1747189290192,0.16762071,103780.0,103770.0,2.32678687]
[1747189290902,0.19822071,103780.0,103770.0,2.32678687]
[1747189291103,0.23062071,103780.0,103770.0,2.24868652]
[1747189291301,0.23062071,103780.0,103770.0,2.32678687]
[1747189291703,0.19822071,103780.0,103770.0,2.32678687]
[1747189292201,0.23062071,103780.0,103770.0,2.32678687]
[1747189292703,0.86222676,103780.0,103770.0,0.38788652]
[1747189292897,0.89322676,103780.0,103770.0,0.38788652]
[1747189293092,0.70052106,103780.0,103770.0,0.38788652]
[1747189293505,0.62242071,103780.0,103770.0,0.38788652]
[1747189293809,0.62242071,103780.0,103770.0,0.46598687]
[1747189294304,0.62242071,103780.0,103770.0,0.38788652]
[1747189296407,0.26162071,103780.0,103770.0,0.38788652]
[1747189298312,0.26162071,103780.0,103770.0,0.46598687]
[1747189298707,0.26162071,103780.0,103770.0,1.96598687]
[1747189299606,0.26162071,103780.0,103770.0,1.88788652]
[1747189299811,0.26162071,103780.0,103770.0,1.96598687]
[1747189302008,0.62242071,103780.0,103770.0,1.96598687]
[1747189302213,0.26162071,103780.0,103770.0,1.96598687]
[1747189304317,0.16762071,103780.0,103770.0,2.04408722]
[1747189304504,0.16762071,103780.0,103770.0,2.32678687]
[1747189304708,0.16762071,103780.0,103770.0,1.96598687]
[1747189305213,0.00562071,103780.0,103770.0,2.32678687]
[1747189306114,0.16762071,103780.0,103770.0,2.32678687]
[1747189308114,0.00562071,103780.0,103770.0,2.32678687]
[1747189308517,0.00562071,103780.0,103770.0,2.24868652]
[1747189308817,0.00562071,103780.0,103770.0,2.32678687]
[1747189309316,0.00562071,103780.0,103770.0,1.96598687]
[1747189309511,0.00562071,103780.0,103770.0,2.32678687]
[1747189310204,0.16762071,103780.0,103770.0,2.32678687]
[1747189311518,0.16762071,103780.0,103770.0,2.47405568]
[1747189312815,0.16762071,103780.0,103770.0,2.39595533]
[1747189313116,0.16762071,103780.0,103770.0,2.47405568]
[1747189313420,0.00562071,103780.0,103770.0,2.47405568]
[1747189314123,0.16762071,103780.0,103770.0,2.47405568]
[1747189318517,0.16762071,103780.0,103770.0,2.39595533]
[1747189318919,0.20022071,103780.0,103770.0,2.47405568]
[1747189320826,0.20022071,103780.0,103770.0,2.48353003]
[1747189321628,0.16762071,103780.0,103770.0,2.48353003]
[1747189323128,0.16762071,103780.0,103770.0,2.33626122]
[1747189323727,0.16762071,103780.0,103770.0,2.32678687]
[1747189324526,0.19872071,103780.0,103770.0,2.32678687]
[1747189325821,0.19872071,103780.0,103770.0,1.96598687]
[1747189326025,0.19872071,103780.0,103770.0,2.32678687]
[1747189326329,0.19872071,103780.0,103770.0,2.24868652]
[1747189326524,0.19872071,103780.0,103770.0,2.32678687]
[1747189330836,0.19872071,103780.0,103770.0,2.39595533]
[1747189331029,0.19872071,103780.0,103770.0,2.47405568]
[1747189332826,0.18715423,103780.0,103770.0,2.47405568]
[1747189333635,0.19277494,103780.0,103770.0,2.47405568]
[1747189335134,0.19277494,103780.0,103770.0,2.39595533]
[1747189335340,0.19277494,103780.0,103770.0,2.47405568]
[1747189337738,0.19277494,103780.0,103770.0,2.11325568]
[1747189337925,0.19277494,103780.0,103770.0,2.47405568]
[1747189339242,0.03672071,103780.0,103770.0,2.47405568]
[1747189339931,0.03672071,103780.0,103770.0,2.39595533]
[1747189340241,0.19872071,103780.0,103770.0,2.47405568]
[1747189340743,0.19872071,103780.0,103770.0,2.39595533]
[1747189341040,0.19872071,103780.0,103770.0,2.47405568]
[1747189341940,0.16762071,103780.0,103770.0,0.97405568]
[1747189342141,0.00562071,103780.0,103770.0,0.97405568]
[1747189342442,0.00562071,103780.0,103770.0,2.47405568]
[1747189343936,0.00562071,103780.0,103770.0,2.39595533]
[1747189344137,0.03752071,103780.0,103770.0,2.47405568]
[1747189344347,0.03752071,103780.0,103770.0,2.39595533]
[1747189344845,0.03752071,103780.0,103770.0,2.47405568]
[1747189345546,0.06882071,103780.0,103770.0,2.47405568]
[1747189346154,0.23082071,103780.0,103770.0,2.47405568]
[1747189346557,0.26282071,103780.0,103770.0,2.47405568]
[1747189348658,0.23082071,103780.0,103770.0,2.47405568]
[1747189348954,0.23082071,103780.0,103770.0,2.39595533]
[1747189349158,0.23082071,103780.0,103770.0,2.47405568]
[1747189350654,0.23082071,103780.0,103770.0,2.39595533]
[1747189350846,0.23082071,103780.0,103770.0,2.47405568]
[1747189358361,0.23082071,103780.0,103770.0,2.11325568]
[1747189358562,0.19952071,103780.0,103770.0,2.39595533]
[1747189358762,0.19952071,103780.0,103770.0,2.47405568]
[1747189359663,0.23252071,103780.0,103770.0,2.47405568]
[1747189359856,0.2209542,103780.0,103770.0,2.47405568]
[1747189360058,0.22657491,103780.0,103770.0,2.47405568]
[1747189360864,0.22657491,103780.0,103770.0,2.39595533]
[1747189361072,0.22657491,103780.0,103770.0,2.47405568]
[1747189361359,0.22657491,103780.0,103770.0,2.39595533]
[1747189361565,0.22657491,103780.0,103770.0,2.47405568]
[1747189362167,0.22657491,103780.0,103770.0,2.39595533]
[1747189362465,0.22657491,103780.0,103770.0,2.47405568]
[1747189365064,0.20965873,103780.0,103770.0,2.47405568]
[1747189366267,0.21527944,103780.0,103770.0,2.47405568]
[1747189371372,0.21527944,103780.0,103770.0,2.80593568]
[1747189373874,0.20062071,103780.0,103770.0,2.80593568]
[1747189374577,0.16762071,103780.0,103770.0,2.80593568]
[1747189378977,0.15632528,103780.0,103770.0,2.80593568]
[1747189382481,0.15632528,103780.0,103770.0,3.00198546]
[1747189385880,0.15632528,103780.0,103770.0,2.92388511]
[1747189386073,0.15632528,103780.0,103770.0,3.00198546]
[1747189386574,0.15632528,103780.0,103770.0,2.67010546]
[1747189389778,0.15632528,103780.0,103770.0,3.00198546]
[1747189392281,0.15632528,103780.0,103770.0,2.92388511]
[1747189392579,0.15632528,103780.0,103770.0,3.00198546]
[1747189392785,0.25312528,103780.0,103770.0,3.25232511]
[1747189392984,0.25312528,103780.0,103770.0,3.33042546]
[1747189394583,0.25312528,103780.0,103770.0,2.99854546]
[1747189395183,0.44583098,103780.0,103770.0,0.73120511]
[1747189395485,0.25312528,103780.0,103770.0,0.70040511]
[1747189395687,0.25312528,103780.0,103770.0,2.20040511]
[1747189395879,0.25312528,103780.0,103770.0,2.27850546]
[1747189396386,0.44583098,103780.0,103770.0,2.20040511]
[1747189396587,0.44583098,103780.0,103770.0,2.27850546]
[1747189396887,0.25312528,103780.0,103770.0,2.27850546]
[1747189397186,0.44583098,103780.0,103770.0,2.27850546]
[1747189397987,0.80663098,103780.0,103770.0,2.16720511]
[1747189399180,0.80663098,103780.0,103770.0,1.97115533]
[1747189399383,0.80663098,103780.0,103770.0,2.04925568]
[1747189402987,0.88473133,103780.0,103770.0,1.97115533]
[1747189403492,0.80663098,103780.0,103770.0,1.97115533]
[1747189404192,0.80663098,103780.0,103770.0,1.82388652]
[1747189404782,0.80663098,103780.0,103770.0,1.82288652]
[1747189404977,0.80763098,103780.0,103770.0,1.82288652]
[1747189405286,0.80763098,103780.0,103770.0,1.82188652]
[1747189405484,0.80863098,103780.0,103770.0,1.82188652]
[1747189409496,0.88673133,103780.0,103770.0,1.82188652]
[1747189409696,0.80863098,103780.0,103770.0,1.82188652]
[1747189410487,0.80863098,103780.0,103770.0,1.85428652]
[1747189410986,0.80863098,103780.0,103770.0,1.88638652]
[1747189412094,0.80863098,103780.0,103770.0,1.96448687]
[1747189412296,0.80863098,103780.0,103770.0,1.88638652]
[1747189413695,0.80863098,103780.0,103770.0,0.38638652]
[1747189414286,0.80863098,103780.0,103770.0,1.88638652]
[1747189415188,0.96483168,103780.0,103770.0,0.38638652]
[1747189415389,0.88673133,103780.0,103770.0,0.38638652]
[1747189415593,0.88673133,103780.0,103770.0,0.32188652]
[1747189420997,0.88673133,103780.0,103770.0,0.38658652]
[1747189424292,0.52593133,103780.0,103770.0,0.38658652]
[1747189424596,0.88673133,103780.0,103770.0,0.38658652]
[1747189427604,0.88673133,103780.0,103770.0,0.32188652]
[1747189427907,0.96483168,103780.0,103770.0,0.12916232]
[1747189428309,0.96483168,103780.0,103770.0,0.32188652]
[1747189429209,0.88673133,103780.0,103770.0,0.32188652]
[1747189430012,0.88111062,103780.0,103770.0,0.38618652]
[1747189431106,0.88673133,103780.0,103770.0,0.38618652]
[1747189433909,0.80863098,103780.0,103770.0,0.38618652]
[1747189434110,0.95998209,103780.0,103770.0,0.38618652]
[1747189434811,0.88188174,103780.0,103770.0,0.38618652]
[1747189435311,0.95998209,103780.0,103770.0,0.38618652]
[1747189438315,0.88188174,103780.0,103770.0,0.38618652]
[1747189438517,0.95998209,103780.0,103770.0,0.38618652]
[1747189439403,1.03808244,103780.0,103770.0,0.38618652]
[1747189439914,0.95998209,103780.0,103770.0,0.38618652]
[1747189441113,0.59918209,103780.0,103770.0,0.38618652]
[1747189441318,1.32078209,103780.0,103770.0,0.38618652]
[1747189442611,1.39888244,103780.0,103770.0,0.38618652]
[1747189443114,1.39326173,103780.0,103770.0,0.38618652]
[1747189443515,1.31516138,103780.0,103770.0,0.38618652]
[1747189444020,1.23706103,103780.0,103770.0,0.38618652]
[1747189444314,1.32078209,103780.0,103770.0,0.38618652]
[1747189451418,1.39888244,103780.0,103770.0,0.38618652]
[1747189452215,1.39788244,103780.0,103770.0,0.38618652]
[1747189452417,1.40188244,103780.0,103770.0,0.38618652]
[1747189452814,1.49953856,103780.0,103770.0,0.38618652]
[1747189453721,1.49953856,103780.0,103770.0,0.19346232]
[1747189453920,1.49953856,103780.0,103770.0,0.38618652]
[1747189454820,1.42143821,103780.0,103770.0,0.38618652]
[1747189457022,1.34333786,103780.0,103770.0,0.38618652]
[1747189457221,1.42143821,103780.0,103770.0,0.38618652]
[1747189458927,1.49953856,103780.0,103770.0,0.38618652]
[1747189459727,1.49953856,103780.0,103770.0,0.19346232]
[1747189459915,1.49953856,103780.0,103770.0,0.38618652]
[1747189462027,1.34333786,103780.0,103770.0,0.38618652]
[1747189462230,1.49953856,103780.0,103770.0,0.38618652]
[1747189462422,0.77793856,103780.0,103770.0,0.38618652]
[1747189462623,1.49953856,103780.0,103770.0,0.38618652]
[1747189463532,1.40188244,103780.0,103770.0,0.38618652]
[1747189463733,1.32378209,103780.0,103770.0,0.38618652]
[1747189465036,0.60218209,103780.0,103770.0,0.38618652]
[1747189465331,1.24568174,103780.0,103770.0,0.38618652]
[1747189465735,1.32378209,103780.0,103770.0,0.38618652]
[1747189466334,1.32378209,103780.0,103770.0,0.19346232]
[1747189466335,1.40188244,103780.0,103770.0,0.19346232]
[1747189466538,1.40188244,103780.0,103770.0,0.38618652]
[1747189466739,1.24568174,103780.0,103770.0,0.38618652]
[1747189467227,1.32378209,103780.0,103770.0,0.38618652]
[1747189467729,1.34333786,103780.0,103770.0,0.38618652]
[1747189467928,1.42143821,103780.0,103770.0,0.38618652]
[1747189468443,0.69983821,103780.0,103770.0,0.38618652]
[1747189468642,1.42143821,103780.0,103770.0,0.38618652]
[1747189471541,1.34333786,103780.0,103770.0,0.38618652]
[1747189471847,1.42143821,103780.0,103770.0,0.38618652]
[1747189473442,1.49953856,103780.0,103770.0,0.19346232]
[1747189473640,1.90763891,103780.0,103770.0,0.12916232]
[1747189473843,0.1927428,103760.0,103750.0,0.4049678]
[1747189474036,0.1927428,103760.0,103750.0,0.4022186]
[1747189474037,1.0705435,103760.0,103750.0,0.4022186]
[1747189474343,1.1346435,103760.0,103750.0,0.49858092]
[1747189474546,1.1656435,103760.0,103750.0,0.49858092]
[1747189474947,1.1656435,103760.0,103750.0,0.69134232]
[1747189475246,1.3276435,103760.0,103750.0,0.69134232]
[1747189475748,1.24954315,103760.0,103750.0,0.69334232]
[1747189475947,1.3276435,103760.0,103750.0,0.69334232]
[1747189476249,1.18714315,103760.0,103750.0,0.69334232]
[1747189476846,1.18814315,103760.0,103750.0,0.69234232]
[1747189477035,1.18814315,103760.0,103750.0,0.38332372]
[1747189477241,1.19014315,103760.0,103750.0,0.38332372]
[1747189478539,1.18914315,103760.0,103750.0,0.38332372]
[1747189478740,1.19214315,103760.0,103750.0,0.38332372]
[1747189479140,1.1140428,103760.0,103750.0,0.38332372]
[1747189479445,1.19214315,103760.0,103750.0,0.38332372]
[1747189479642,1.1140428,103760.0,103750.0,0.38332372]
[1747189479848,1.19214315,103760.0,103750.0,0.38332372]
[1747189480642,1.1140428,103760.0,103750.0,0.38332372]
[1747189480850,1.19214315,103760.0,103750.0,0.38332372]
[1747189481341,1.0813428,103760.0,103750.0,0.46142407]
[1747189481545,0.5278,103760.0,103750.0,0.46142407]
[1747189481746,0.3597428,103760.0,103750.0,0.46142407]
[1747189482250,0.1977428,103760.0,103750.0,1.96142407]
[1747189482948,0.1957428,103760.0,103750.0,1.96142407]
[1747189483351,0.001,103760.0,103750.0,2.32222407]
[1747189485251,0.1937428,103760.0,103750.0,2.32222407]
[1747189486440,0.001,103760.0,103750.0,2.32222407]
[1747189486646,0.1937428,103760.0,103750.0,2.32222407]
[1747189486848,0.001,103760.0,103750.0,2.32222407]
[1747189487055,0.1937428,103760.0,103750.0,2.32222407]
[1747189489155,0.1937428,103760.0,103750.0,1.96142407]
[1747189489358,0.1937428,103760.0,103750.0,2.32222407]
[1747189491361,0.001,103760.0,103750.0,2.32222407]
[1747189492055,0.1937428,103760.0,103750.0,2.32222407]
[1747189492557,0.001,103760.0,103750.0,2.32222407]
[1747189494053,0.1937428,103760.0,103750.0,2.32222407]
[1747189498357,0.1937428,103760.0,103750.0,2.24412372]
[1747189498559,0.1937428,103760.0,103750.0,2.32222407]
[1747189501352,0.2262428,103760.0,103750.0,2.24412372]
[1747189501561,0.2582428,103760.0,103750.0,2.24412372]
[1747189501858,0.6190428,103760.0,103750.0,1.88332372]
[1747189502060,0.6190428,103760.0,103750.0,1.96142407]
[1747189502357,0.6190428,103760.0,103750.0,1.88332372]
[1747189502557,0.7752435,103760.0,103750.0,0.02008572]
[1747189502748,0.8072435,103760.0,103750.0,0.02008572]
[1747189502949,0.81286421,103760.0,103750.0,0.02008572]
[1747189503156,0.1927614,103750.0,103740.0,0.19604978]
[1747189503459,1.04258175,103750.0,103740.0,0.48521067]
[1747189504253,1.20458175,103750.0,103740.0,0.29016089]
[1747189504450,1.20458175,103750.0,103740.0,0.09838089]
[1747189504651,1.20458175,103750.0,103740.0,0.29116089]
[1747189506851,1.20458175,103750.0,103740.0,0.32366089]
[1747189508665,1.20458175,103750.0,103740.0,0.29116089]
[1747189513361,1.20458175,103750.0,103740.0,0.32256089]
[1747189514169,1.1264814,103750.0,103740.0,0.32256089]
[1747189514473,1.20458175,103750.0,103740.0,0.32256089]
[1747189517462,1.1264814,103750.0,103740.0,0.32256089]
[1747189517665,1.20458175,103750.0,103740.0,0.32256089]
[1747189519077,1.1264814,103750.0,103740.0,0.32256089]
[1747189519280,1.20458175,103750.0,103740.0,0.32256089]
[1747189521278,1.21020246,103750.0,103740.0,0.32256089]
[1747189524478,1.21020246,103750.0,103740.0,0.29116089]
[1747189524676,1.28830281,103750.0,103740.0,0.09838089]
[1747189526766,1.21020246,103750.0,103740.0,0.09838089]
[1747189527381,1.20458175,103750.0,103740.0,0.09838089]
[1747189527875,1.20458175,103750.0,103740.0,0.13028089]
[1747189528382,1.21020246,103750.0,103740.0,0.13028089]
[1747189528986,1.28345322,103750.0,103740.0,0.13028089]
[1747189532585,1.27783251,103750.0,103740.0,0.13028089]
[1747189533483,1.28345322,103750.0,103740.0,0.13028089]
[1747189536486,1.36155357,103750.0,103740.0,0.13028089]
[1747189536877,1.28345322,103750.0,103740.0,0.13028089]
[1747189537492,1.38110934,103750.0,103740.0,0.13028089]
[1747189541085,1.38110934,103750.0,103740.0,0.16068089]
[1747189541287,1.38110934,103750.0,103740.0,0.13028089]
[1747189547083,1.38110934,103750.0,103740.0,0.002]
[1747189547084,2.10652969,103750.0,103740.0,0.002]
[1747189548890,2.11052969,103750.0,103740.0,0.001]
[1747189549091,0.19278,103740.0,103730.0,0.0954]
[1747189549394,0.64638,103740.0,103730.0,0.19179018]
[1747189549595,0.8025807,103740.0,103730.0,0.19179018]
[1747189550091,0.9645807,103740.0,103730.0,0.19179018]
[1747189550294,0.9665807,103740.0,103730.0,0.19179018]
[1747189551093,0.9685807,103740.0,103730.0,0.19179018]
[1747189552782,1.04183146,103740.0,103730.0,0.19179018]
[1747189553487,0.96373111,103740.0,103730.0,0.19179018]
[1747189554491,1.32453111,103740.0,103730.0,0.19179018]
[1747189555797,1.42218723,103740.0,103730.0,0.19179018]
[1747189556497,1.42218723,103740.0,103730.0,0.032]
[1747189556498,1.95838793,103740.0,103730.0,0.032]
[1747189556697,0.1927986,103730.0,103720.0,0.0626]
[1747189556894,1.03419895,103730.0,103720.0,0.0951]
[1747189557091,1.34015895,103730.0,103720.0,0.0951]
[1747189557398,1.50215895,103730.0,103720.0,0.0951]
[1747189558989,1.50215895,103730.0,103720.0,0.0325]
[1747189560185,1.75316618,103730.0,103720.0,0.0325]
[1747189560391,0.1928543,103700.0,103690.0,0.38988705]
[1747189560596,0.63175465,103700.0,103690.0,0.38988705]
[1747189560796,0.66435465,103700.0,103690.0,0.48629582]
[1747189561195,0.82635465,103700.0,103690.0,0.48629582]
[1747189561698,0.79375465,103700.0,103690.0,0.51879582]
[1747189561994,0.72947488,103700.0,103690.0,0.51879582]
[1747189562199,0.64557523,103700.0,103690.0,0.51879582]
[1747189562401,0.64857523,103700.0,103690.0,0.51879582]
[1747189563091,0.84207523,103700.0,103690.0,0.51879582]
[1747189563595,0.84207523,103700.0,103690.0,0.58419582]
[1747189564198,0.64857523,103700.0,103690.0,0.58419582]
[1747189564799,0.64857523,103700.0,103690.0,0.38814604]
[1747189565901,0.65419594,103700.0,103690.0,0.38814604]
[1747189567705,0.57609559,103700.0,103690.0,0.38814604]
[1747189568001,0.65419594,103700.0,103690.0,0.38814604]
[1747189568911,0.65119594,103700.0,103690.0,0.38814604]
[1747189570008,0.64557523,103700.0,103690.0,0.38814604]
[1747189571010,0.65119594,103700.0,103690.0,0.38814604]
[1747189571910,0.68409594,103700.0,103690.0,0.38814604]
[1747189572112,0.84609594,103700.0,103690.0,0.38814604]
[1747189573112,0.68409594,103700.0,103690.0,0.38814604]
[1747189575312,0.67847523,103700.0,103690.0,0.38814604]
[1747189576712,0.60037488,103700.0,103690.0,0.38814604]
[1747189577012,0.67847523,103700.0,103690.0,0.38814604]
[1747189577211,0.84047523,103700.0,103690.0,0.38814604]
[1747189578212,0.71499594,103700.0,103690.0,0.38814604]
[1747189578409,0.74759594,103700.0,103690.0,0.38814604]
[1747189578710,0.66949559,103700.0,103690.0,0.38814604]
[1747189578916,0.74759594,103700.0,103690.0,0.38814604]
[1747189579110,0.71499594,103700.0,103690.0,0.38814604]
[1747189579317,0.87699594,103700.0,103690.0,0.38814604]
[1747189580216,0.87137523,103700.0,103690.0,0.38814604]
[1747189581117,0.87699594,103700.0,103690.0,0.38814604]
[1747189583119,0.71499594,103700.0,103690.0,0.38814604]
[1747189583610,0.63689559,103700.0,103690.0,0.38814604]
[1747189583810,0.71499594,103700.0,103690.0,0.38814604]
[1747189584117,0.87699594,103700.0,103690.0,0.38814604]
[1747189585319,0.70937523,103700.0,103690.0,0.38814604]
[1747189586114,0.87137523,103700.0,103690.0,0.38814604]
[1747189586417,0.87699594,103700.0,103690.0,0.38814604]
[1747189591124,0.43809559,103700.0,103690.0,0.38814604]
[1747189591423,1.23779594,103700.0,103690.0,0.38814604]
[1747189591809,1.15969559,103700.0,103690.0,0.38814604]
[1747189592220,1.23779594,103700.0,103690.0,0.38814604]
[1747189592421,1.23217523,103700.0,103690.0,0.38814604]
[1747189593311,1.23779594,103700.0,103690.0,0.38814604]
[1747189594923,0.87699594,103700.0,103690.0,0.38814604]
[1747189595721,0.95509629,103700.0,103690.0,0.12977314]
[1747189595916,0.98719629,103700.0,103690.0,0.09737314]
[1747189596422,0.98157558,103700.0,103690.0,0.09737314]
[1747189598317,0.81957558,103700.0,103690.0,0.09737314]
[1747189599510,0.83414316,103700.0,103690.0,0.09737314]
[1747189599715,0.83414316,103700.0,103690.0,0.12947314]
[1747189600116,0.90939392,103700.0,103690.0,0.12947314]
[1747189601223,0.91039392,103700.0,103690.0,0.12947314]
[1747189603617,0.91039392,103700.0,103690.0,0.13509385]
[1747189604728,0.83229357,103700.0,103690.0,0.32796675]
[1747189604926,0.83229357,103700.0,103690.0,0.38886675]
[1747189605119,0.99429357,103700.0,103690.0,0.38886675]
[1747189605525,0.99429357,103700.0,103690.0,0.38324604]
[1747189606529,1.07239392,103700.0,103690.0,0.38324604]
[1747189607720,0.99914316,103700.0,103690.0,0.38324604]
[1747189607927,0.99914316,103700.0,103690.0,0.19037314]
[1747189608726,0.84294246,103700.0,103690.0,0.19037314]
[1747189609129,0.99914316,103700.0,103690.0,0.19037314]
[1747189610032,1.35994316,103700.0,103690.0,0.19037314]
[1747189611323,1.20374246,103700.0,103690.0,0.19037314]
[1747189611525,1.35994316,103700.0,103690.0,0.19037314]
[1747189612831,1.20374246,103700.0,103690.0,0.19037314]
[1747189613030,1.35994316,103700.0,103690.0,0.12947314]
[1747189614231,1.19794316,103700.0,103690.0,0.12947314]
[1747189615335,1.04174246,103700.0,103690.0,0.12947314]
[1747189615524,1.19794316,103700.0,103690.0,0.12947314]
[1747189616736,1.19794316,103700.0,103690.0,0.19207314]
[1747189618537,1.27119392,103700.0,103690.0,0.19207314]
[1747189618832,1.11499322,103700.0,103690.0,0.19769385]
[1747189619028,1.11499322,103700.0,103690.0,0.16609385]
[1747189619231,1.27119392,103700.0,103690.0,0.16609385]
[1747189619736,1.27119392,103700.0,103690.0,0.16047314]
[1747189620737,1.11499322,103700.0,103690.0,0.16047314]
[1747189621035,1.27119392,103700.0,103690.0,0.19377314]
[1747189624537,1.11499322,103700.0,103690.0,0.19377314]
[1747189624733,1.27119392,103700.0,103690.0,0.19377314]
[1747189624937,1.27119392,103700.0,103690.0,0.19939385]
[1747189625938,1.11552599,103700.0,103690.0,0.38664604]
[1747189626145,1.19942564,103700.0,103690.0,0.38664604]
[1747189626334,1.27752599,103700.0,103690.0,0.38664604]
[1747189626733,1.23042564,103700.0,103690.0,0.38664604]
[1747189626937,1.30852599,103700.0,103690.0,0.38664604]
[1747189627130,1.14652599,103700.0,103690.0,0.19377314]
[1747189627335,1.17922599,103700.0,103690.0,0.19377314]
[1747189627531,1.25732634,103700.0,103690.0,0.19377314]
[1747189628142,1.43394813,103700.0,103690.0,0.19377314]
[1747189628531,1.35584778,103700.0,103690.0,0.19377314]
[1747189628735,1.34122599,103700.0,103690.0,0.19377314]
[1747189630335,1.17922599,103700.0,103690.0,0.19377314]
[1747189630532,1.10112564,103700.0,103690.0,0.19377314]
[1747189630737,1.17922599,103700.0,103690.0,0.19377314]
[1747189631241,1.34122599,103700.0,103690.0,0.19377314]
[1747189636838,1.41932634,103700.0,103690.0,0.19377314]
[1747189639840,1.41932634,103700.0,103690.0,0.12947314]
[1747189640038,1.42494705,103700.0,103690.0,0.12947314]
[1747189641141,1.25732634,103700.0,103690.0,0.12947314]
[1747189642338,1.27190563,103700.0,103690.0,0.09737314]
[1747189642542,0.1928729,103690.0,103680.0,0.0307]
[1747189642750,0.1928915,103680.0,103670.0,0.40633644]
[1747189642948,0.69369185,103680.0,103670.0,0.40633644]
[1747189643249,0.69369185,103680.0,103670.0,0.6647731]
[1747189644439,0.69369185,103680.0,103670.0,0.6952731]
[1747189644645,0.69369185,103680.0,103670.0,0.49922332]
[1747189645353,0.6155915,103680.0,103670.0,0.69213342]
[1747189645647,0.69369185,103680.0,103670.0,0.69213342]